bitfinex/quotes_ETHUSD_20250413
["timestamp","ask_amount","ask_price","bid_price","bid_amount"]
[1744510339274,12.36197,1617.9,1617.6,2.552633]
[1744510340279,0.18855787,1617.8,1617.6,2.552633]
[1744510340578,0.18855787,1617.8,1617.6,0.918233]
[1744510340767,6.36985787,1617.8,1617.6,0.918233]
[1744510340967,12.55135787,1617.8,1617.5,1.6344]
[1744510341540,6.36985787,1617.8,1617.5,1.6344]
[1744510341745,6.36985787,1617.8,1617.5,7.81671]
[1744510343262,12.55133787,1617.8,1617.5,1.6344]
[1744510343846,6.36985787,1617.8,1617.5,1.6344]
[1744510344776,0.18855787,1617.8,1617.6,6.18198]
[1744510345006,0.18855787,1617.8,1617.7,0.618198]
[1744510345284,6.18013,1618.1,1617.7,8.363708]
[1744510345578,0.19095949,1618.0,1617.8,12.36244]
[1744510345749,0.19095949,1618.0,1617.9,7.74475]
[1744510345955,6.17895,1618.4,1618.0,6.18017]
[1744510346259,0.16259871,1618.3,1618.0,8.68828043]
[1744510346442,12.35825,1618.4,1618.0,8.68828043]
[1744510346648,0.16259871,1618.3,1618.0,8.68828043]
[1744510346848,12.35825,1618.4,1618.0,8.68828043]
[1744510347058,0.16259871,1618.3,1618.1,0.86882804]
[1744510347257,12.35825,1618.4,1618.1,0.86882804]
[1744510347502,7.45183871,1618.3,1618.0,2.50811043]
[1744510347650,6.17988,1618.2,1617.9,10.5339]
[1744510347986,0.16111954,1618.1,1617.9,10.5339]
[1744510348158,0.16111954,1618.1,1617.9,16.7147]
[1744510348484,0.16037981,1618.0,1617.9,16.7147]
[1744510348780,7.28903,1618.3,1617.9,10.7447]
[1744510348982,7.28903,1618.3,1618.0,1.07447]
[1744510349384,1.1097,1618.3,1617.8,5.97]
[1744510349586,6.18085,1617.9,1617.8,5.97]
[1744510351323,7.29033,1618.0,1617.8,5.97]
[1744510351485,6.18012,1618.1,1617.8,7.5079]
[1744510351686,6.18012,1618.1,1617.8,2.906836]
[1744510352398,12.36043,1618.1,1617.8,2.906836]
[1744510352705,6.17977,1618.2,1617.8,2.906836]
[1744510353003,6.17899,1618.4,1618.0,6.18025]
[1744510353213,12.35817,1618.4,1618.1,1.5379]
[1744510353912,7.2883,1618.5,1618.1,7.71767]
[1744510354081,6.1786,1618.5,1618.1,7.71767]
[1744510354692,7.2876,1618.7,1618.1,1.5379]
[1744510354887,6.17831,1618.6,1618.2,6.17945]
[1744510355209,6.17831,1618.6,1618.3,0.617945]
[1744510355390,0.16277447,1618.5,1618.3,0.617945]
[1744510356415,6.34135447,1618.5,1618.3,0.617945]
[1744510356716,6.34135447,1618.5,1618.1,13.89785]
[1744510357008,12.52016447,1618.5,1618.1,7.71783]
[1744510357211,6.34135447,1618.5,1618.1,13.89773]
[1744510358316,6.34135447,1618.5,1618.1,7.7178]
[1744510358512,6.34135447,1618.5,1618.1,9.704626]
[1744510358911,6.17894,1618.4,1618.1,9.704626]
[1744510359207,0.15018549,1618.3,1618.1,9.704626]
[1744510359407,0.15018549,1618.3,1618.1,3.524726]
[1744510359601,13.46698,1618.5,1618.1,9.704766]
[1744510359916,13.4505,1618.8,1618.2,6.1796]
[1744510359917,7.28793,1618.6,1618.2,6.1796]
[1744510360124,0.1516643,1618.5,1618.2,6.1796]
[1744510360999,6.3302343,1618.5,1618.2,6.1796]
[1744510361626,0.1516643,1618.5,1618.2,6.1796]
[1744510362721,7.28915,1618.3,1618.0,3.0]
[1744510362890,0.14951211,1618.2,1618.0,1.071873]
[1744510363991,13.46879,1618.3,1618.0,1.071873]
[1744510364328,0.14951211,1618.2,1618.0,1.071873]
[1744510364623,13.46879,1618.3,1618.0,1.071873]
[1744510365032,0.14951211,1618.2,1618.0,1.071873]
[1744510365420,13.46879,1618.3,1618.0,1.071873]
[1744510365815,0.14951211,1618.2,1618.0,1.071873]
[1744510366129,13.46879,1618.3,1618.0,1.071873]
[1744510366292,0.14951211,1618.2,1618.0,1.071873]
[1744510366495,13.46879,1618.3,1618.0,1.071873]
[1744510366723,0.14951211,1618.2,1618.0,1.071873]
[1744510366927,13.46879,1618.3,1618.0,1.071873]
[1744510367125,0.14951211,1618.2,1618.0,1.071873]
[1744510367427,0.14951211,1618.2,1618.0,7.252253]
[1744510367799,12.3582,1618.4,1618.0,7.252253]
[1744510367997,0.14877248,1618.1,1618.0,1.071873]
[1744510368527,6.17935,1618.3,1618.0,1.071873]
[1744510369029,0.14951211,1618.2,1618.0,1.071873]
[1744510371734,1.25921211,1618.2,1617.7,14.7453]
[1744510371922,6.18059,1618.0,1617.7,7.4743]
[1744510372098,0.14666435,1617.9,1617.7,1.5043]
[1744510374045,0.14666435,1617.9,1617.7,7.68582]
[1744510374203,0.14666435,1617.9,1617.8,6.18123]
[1744510374402,7.28898,1618.4,1618.0,6.18034]
[1744510374601,13.46818,1618.4,1618.0,6.18034]
[1744510375071,6.18023,1618.1,1617.8,4.386705]
[1744510375215,6.18074,1618.0,1617.7,7.4743]
[1744510375414,6.18087,1617.9,1617.7,1.5043]
[1744510375637,6.18074,1618.0,1617.7,1.5043]
[1744510375942,6.1801,1618.1,1617.7,13.86723]
[1744510376236,6.1801,1618.1,1617.7,7.68575]
[1744510376404,12.36041,1618.1,1617.7,9.79782]
[1744510376601,6.18057,1618.0,1617.7,3.61637]
[1744510376808,6.1801,1618.1,1617.7,9.79785]
[1744510377204,6.1809,1617.9,1617.6,7.253]
[1744510377411,6.18123,1617.8,1617.6,7.253]
[1744510377638,6.1809,1617.9,1617.6,7.253]
[1744510383038,7.2899,1618.1,1617.7,7.70965]
[1744510383232,7.2899,1618.1,1617.7,7.70951]
[1744510383556,6.1802,1618.1,1617.8,0.770951]
[1744510383755,12.36051,1618.1,1617.8,0.770951]
[1744510385360,0.14608055,1618.0,1617.8,0.770951]
[1744510386726,0.14608055,1618.0,1617.9,11.25895]
[1744510386926,12.35753,1618.5,1618.1,6.18006]
[1744510387131,12.35753,1618.5,1618.1,6.950876]
[1744510387459,6.17916,1618.4,1618.1,0.770816]
[1744510387660,6.17933,1618.3,1618.1,0.770816]
[1744510387962,6.17916,1618.4,1618.1,0.770816]
[1744510388523,6.17862,1618.5,1618.1,6.950766]
[1744510388726,12.35742,1618.5,1618.2,0.6950766]
[1744510389571,12.35741,1618.5,1618.2,0.6950766]
[1744510391267,6.17862,1618.5,1618.2,0.6950766]
[1744510391474,12.35837,1618.4,1618.1,0.770816]
[1744510392041,6.17915,1618.4,1618.1,0.770816]
[1744510392276,1.1097,1618.6,1618.1,0.770816]
[1744510392448,1.1097,1618.3,1617.8,7.4981]
[1744510392773,6.18071,1618.0,1617.6,21.14487]
[1744510392981,6.1807,1618.0,1617.6,27.11471]
[1744510393164,0.14600252,1617.9,1617.7,6.18157]
[1744510393340,0.14600252,1617.9,1617.8,0.618157]
[1744510394972,0.14600252,1617.9,1617.6,8.7811]
[1744510395283,6.18129,1617.8,1617.6,8.7811]
[1744510395777,0.14271046,1617.7,1617.6,11.7811]
[1744510396955,6.18085,1617.9,1617.6,17.96309]
[1744510397340,0.14341738,1617.8,1617.6,13.96614067]
[1744510397542,6.18014,1618.1,1617.7,7.57801407]
[1744510397745,6.18014,1618.1,1617.8,1.5822]
[1744510397947,0.1448971,1618.0,1617.8,1.5822]
[1744510401776,6.3254271,1618.0,1617.8,1.5822]
[1744510401981,6.3254271,1618.0,1617.7,5.97]
[1744510402481,6.18102,1617.9,1617.7,5.97]
[1744510402782,0.14341738,1617.8,1617.7,5.97]
[1744510404183,12.36125,1618.0,1617.7,7.75271]
[1744510404348,0.14341738,1617.8,1617.7,1.78271]
[1744510404544,12.36125,1618.0,1617.7,1.78271]
[1744510404750,0.14341738,1617.8,1617.7,1.78271]
[1744510404950,12.36125,1618.0,1617.7,1.78271]
[1744510405274,0.14341738,1617.8,1617.7,1.78271]
[1744510405475,12.36125,1618.0,1617.7,1.78271]
[1744510405678,0.14341738,1617.8,1617.7,12.21836067]
[1744510405886,6.17983,1618.2,1617.9,6.18082]
[1744510406247,0.14484266,1618.1,1617.9,6.18082]
[1744510406585,6.17983,1618.2,1617.9,6.18082]
[1744510406760,0.14410294,1618.0,1617.9,6.18082]
[1744510407077,6.17983,1618.2,1617.9,7.07298561]
[1744510407283,0.14459927,1618.0,1617.9,7.07298561]
[1744510407879,6.17983,1618.2,1617.9,7.07298561]
[1744510408068,0.14459927,1618.0,1617.9,7.07298561]
[1744510408270,6.17939,1618.3,1617.9,7.07298561]
[1744510408476,12.35811,1618.4,1618.0,8.53976856]
[1744510408675,6.17955,1618.3,1618.0,2.35959856]
[1744510408983,6.17999,1618.2,1618.0,2.35959856]
[1744510410558,6.18008,1618.1,1617.9,5.97]
[1744510411492,6.18046,1618.0,1617.9,5.97]
[1744510411687,6.18046,1618.0,1617.8,1.6523]
[1744510411864,12.36052,1618.1,1617.8,1.6523]
[1744510412599,6.18008,1618.1,1617.8,1.6523]
[1744510412790,6.17977,1618.2,1617.8,7.83348]
[1744510412973,12.35977,1618.2,1617.9,0.783348]
[1744510413358,13.46857,1618.3,1617.9,6.964068]
[1744510413793,6.17982,1618.2,1617.9,0.783348]
[1744510413960,12.35984,1618.2,1617.9,0.783348]
[1744510414163,6.17982,1618.2,1617.9,0.783348]
[1744510414362,6.17938,1618.3,1618.0,7.71436]
[1744510414564,6.17938,1618.3,1618.1,0.771436]
[1744510414779,6.17938,1618.3,1618.0,7.71436]
[1744510415478,0.13563917,1618.2,1618.0,7.71436]
[1744510416275,0.13563917,1618.2,1618.0,1.534]
[1744510416477,6.31545917,1618.2,1618.0,1.534]
[1744510417278,0.13563917,1618.2,1618.0,1.534]
[1744510417478,0.13563917,1618.2,1618.0,3.5988538]
[1744510418391,6.31541917,1618.2,1618.0,1.534]
[1744510420080,0.13563917,1618.2,1618.0,7.71428]
[1744510420275,0.13563917,1618.2,1618.0,13.89456]
[1744510420479,12.35812,1618.4,1618.0,7.71428]
[1744510420677,0.14970392,1618.1,1618.0,7.71428]
[1744510421000,0.14970392,1618.1,1618.0,9.7791208]
[1744510421201,12.35812,1618.4,1618.0,9.7791208]
[1744510421409,0.14970392,1618.1,1618.0,9.7791208]
[1744510421571,6.17938,1618.3,1618.0,9.7791208]
[1744510421771,0.14970392,1618.1,1618.0,9.7791208]
[1744510421999,6.17938,1618.3,1618.0,9.7791208]
[1744510422303,6.17938,1618.3,1618.1,0.97791208]
[1744510427448,6.1797,1618.2,1618.1,0.97791208]
[1744510427725,6.1797,1618.2,1617.9,8.289648]
[1744510428607,12.3596,1618.2,1617.9,8.289648]
[1744510428921,6.18015,1618.1,1617.9,8.289648]
[1744510430151,6.18015,1618.1,1617.9,5.97]
[1744510430410,6.18015,1618.1,1617.4,61.18484939]
[1744510430411,6.18163,1617.7,1617.4,61.18484939]
[1744510430712,6.18201,1617.6,1617.4,52.999]
[1744510431015,6.18104,1617.9,1617.5,9.01984563]
[1744510431383,1.1097,1618.1,1617.5,5.0226863]
[1744510431582,6.18013,1618.1,1617.8,1.5918]
[1744510431798,6.17976,1618.2,1617.8,1.5918]
[1744510432017,6.18028,1618.1,1617.8,1.5918]
[1744510432181,7.29033,1618.0,1617.8,0.77732]
[1744510432381,7.29033,1618.0,1617.6,16.95555]
[1744510433329,7.29033,1618.0,1617.7,6.18161]
[1744510433483,7.28979,1618.1,1617.7,12.36322]
[1744510434134,7.28979,1618.1,1617.8,6.18117]
[1744510434434,7.28979,1618.1,1617.8,7.417448]
[1744510434608,6.18009,1618.1,1617.8,7.417448]
[1744510434815,6.17971,1618.2,1617.9,1.5918]
[1744510435007,6.17971,1618.2,1617.9,7.7726]
[1744510436004,6.17971,1618.2,1617.9,1.5918]
[1744510436338,6.18023,1618.1,1617.9,1.5190258]
[1744510436528,6.18023,1618.1,1617.8,1.236278]
[1744510436837,6.18065,1618.0,1617.8,1.236278]
[1744510437037,6.18011,1618.1,1617.7,13.74304]
[1744510437444,0.14849792,1618.0,1617.7,13.74304]
[1744510437653,0.14849792,1618.0,1617.8,6.18119]
[1744510437832,6.18011,1618.1,1617.8,6.18119]
[1744510438037,12.36053,1618.1,1617.7,13.74304]
[1744510438326,0.14849792,1618.0,1617.7,16.757239]
[1744510439144,0.14849792,1618.0,1617.7,12.76103967]
[1744510439449,7.28943,1618.2,1617.8,6.18099]
[1744510439620,0.14761014,1617.9,1617.8,12.36206]
[1744510439948,7.28943,1618.2,1617.8,12.36206]
[1744510440102,0.14938559,1618.1,1617.9,1.236206]
[1744510440451,6.18011,1618.1,1617.9,1.236206]
[1744510440749,6.32902792,1618.0,1617.7,10.787569]
[1744510441047,6.35365241,1618.0,1617.7,10.787569]
[1744510441355,6.17975,1618.2,1617.9,6.18081]
[1744510441523,0.17338659,1618.1,1617.9,6.18081]
[1744510441727,6.17975,1618.2,1617.9,6.18081]
[1744510441929,0.17338659,1618.1,1618.0,0.618081]
[1744510442251,6.17975,1618.2,1618.0,0.618081]
[1744510442409,0.17338659,1618.1,1618.0,0.618081]
[1744510442610,7.28907,1618.3,1618.0,8.390341]
[1744510442850,0.17338659,1618.1,1618.0,8.390341]
[1744510443053,7.28907,1618.3,1618.0,2.209881]
[1744510443212,0.17338659,1618.1,1618.0,2.209881]
[1744510443409,7.28907,1618.3,1618.0,2.209881]
[1744510443739,6.17897,1618.4,1618.0,8.390311]
[1744510444051,0.17560536,1618.3,1618.1,0.8390311]
[1744510444248,0.17560536,1618.3,1617.9,3.0]
[1744510444249,7.2894,1618.2,1617.9,3.0]
[1744510444439,6.18008,1618.1,1617.9,3.0]
[1744510444637,1.28419604,1618.2,1617.9,9.1806]
[1744510444969,0.17338659,1618.1,1618.0,6.18046]
[1744510445248,6.17938,1618.3,1618.0,6.18046]
[1744510445249,6.1786,1618.5,1618.1,1.5918]
[1744510445458,13.46709,1618.5,1618.1,7.77176]
[1744510446537,7.2883,1618.5,1618.1,13.95167]
[1744510447047,1.1097,1618.5,1618.2,6.1795]
[1744510447434,7.28826,1618.5,1618.2,6.1795]
[1744510447635,7.28826,1618.5,1618.2,7.574621]
[1744510448348,7.28826,1618.5,1618.2,1.395121]
[1744510448512,0.17671453,1618.4,1618.2,1.395121]
[1744510450540,12.53481453,1618.4,1618.2,1.395121]
[1744510450745,12.53481453,1618.4,1618.1,1.5918]
[1744510450947,6.17946,1618.3,1618.1,1.5918]
[1744510451123,0.17449604,1618.2,1618.1,1.5918]
[1744510451320,6.35419604,1618.2,1618.0,14.723106]
[1744510451523,0.17449604,1618.2,1618.0,8.753106]
[1744510451949,12.35892,1618.3,1618.0,8.753106]
[1744510452122,6.35567917,1618.2,1618.0,7.217]
[1744510452325,6.18085,1617.9,1617.7,7.216]
[1744510452731,6.319574,1617.9,1617.7,7.216]
[1744510453444,12.400674,1617.9,1617.7,7.216]
[1744510453649,6.219574,1617.9,1617.7,7.216]
[1744510454249,6.254255,1617.9,1617.7,7.216]
[1744510454441,6.08085,1617.9,1617.7,7.216]
[1744510455549,6.18051,1618.0,1617.7,8.09551]
[1744510455720,0.17302274,1618.0,1617.8,1.5215]
[1744510455924,6.18029,1618.1,1617.8,1.5215]
[1744510456253,6.35351274,1618.0,1617.8,1.5215]
[1744510457241,0.17302274,1618.0,1617.8,1.5215]
[1744510457442,0.17302274,1618.0,1617.8,3.719483]
[1744510457941,6.35365274,1618.0,1617.8,3.719483]
[1744510458240,6.35365274,1618.0,1617.8,1.5215]
[1744510458551,6.18085,1617.9,1617.7,7.216]
[1744510458763,7.29055,1617.9,1617.7,7.216]
[1744510459719,6.18123,1617.8,1617.5,7.5484]
[1744510459922,12.36272,1617.8,1617.5,1.5784]
[1744510460119,12.36272,1617.8,1617.5,3.89168707]
[1744510460764,6.18163,1617.7,1617.4,9.40204067]
[1744510461326,6.18123,1617.8,1617.4,15.58463067]
[1744510461526,12.3627,1617.8,1617.4,15.58463067]
[1744510463166,6.18123,1617.8,1617.5,6.18225]
[1744510463456,12.3604,1618.1,1617.8,1.5711]
[1744510463828,0.17302274,1618.0,1617.8,1.5711]
[1744510464028,0.17302274,1618.0,1617.8,2.346359]
[1744510464353,6.35349274,1618.0,1617.8,2.346359]
[1744510464659,6.18047,1618.0,1617.8,2.346359]
[1744510465376,6.18009,1618.1,1617.8,2.346359]
[1744510465669,12.3597,1618.2,1617.8,11.527439]
[1744510465844,12.3597,1618.2,1617.9,1.1527439]
[1744510466048,12.53310178,1618.2,1617.9,1.1527439]
[1744510466778,6.18011,1618.1,1617.9,1.1527439]
[1744510467450,12.35971,1618.2,1617.8,11.527439]
[1744510467763,12.53311178,1618.2,1617.8,11.527439]
[1744510468571,6.18016,1618.1,1617.8,11.527439]
[1744510470060,6.18016,1618.1,1617.7,6.63731787]
[1744510470061,6.18049,1618.0,1617.6,14.33691067]
[1744510470264,7.29019,1618.0,1617.6,15.90801067]
[1744510470443,6.1809,1617.9,1617.6,15.90801067]
[1744510470638,13.47102,1618.0,1617.6,15.90801067]
[1744510470954,6.18049,1618.0,1617.6,22.08984067]
[1744510471262,6.18049,1618.0,1617.7,8.39053407]
[1744510473067,6.18049,1618.0,1617.7,15.58953407]
[1744510473671,12.36132,1618.0,1617.7,9.40798407]
[1744510474546,6.18046,1618.0,1617.6,7.5411]
[1744510474872,6.18236,1617.6,1617.3,1.5054]
[1744510475067,12.36472,1617.6,1617.3,1.5054]
[1744510475276,6.18165,1617.7,1617.3,7.6884]
[1744510475440,6.18138,1617.8,1617.5,1.5054]
[1744510476342,6.18168,1617.7,1617.5,1.5054]
[1744510477872,6.18138,1617.8,1617.5,1.5054]
[1744510478051,6.18138,1617.8,1617.5,7.68764]
[1744510478367,6.18089,1617.9,1617.6,0.768764]
[1744510478569,12.36202,1617.9,1617.6,0.768764]
[1744510478775,6.18125,1617.8,1617.6,0.768764]
[1744510479565,6.18125,1617.8,1617.5,1.5054]
[1744510479744,6.18125,1617.8,1617.5,8.7044]
[1744510480477,12.36271,1617.8,1617.5,8.7044]
[1744510480953,6.18199,1617.6,1617.5,8.7044]
[1744510481476,6.18199,1617.6,1617.5,7.199]
[1744510483048,6.18166,1617.7,1617.5,8.592784]
[1744510483482,6.18199,1617.6,1617.5,7.199]
[1744510483983,6.18199,1617.6,1617.4,0.76884]
[1744510484477,6.18429,1617.0,1616.9,1.642]
[1744510484677,12.36886,1617.0,1616.7,1.642]
[1744510484882,12.36886,1617.0,1616.7,4.642]
[1744510485182,6.18429,1617.0,1616.7,4.642]
[1744510485382,6.18395,1617.1,1616.7,13.49199393]
[1744510485581,6.18395,1617.1,1616.7,19.67726393]
[1744510485883,6.18395,1617.1,1616.7,7.30676393]
[1744510486179,6.18442,1617.0,1616.7,7.30676393]
[1744510486578,6.18395,1617.1,1616.7,13.49206393]
[1744510486783,7.29252,1617.4,1616.9,7.71918]
[1744510486950,6.18282,1617.4,1617.0,6.18415]
[1744510487150,6.18355,1617.2,1616.9,7.71918]
[1744510488783,6.18355,1617.2,1616.9,1.5347]
[1744510488979,6.18317,1617.3,1616.9,1.5347]
[1744510489184,12.36655,1617.3,1616.9,8.89956871]
[1744510489490,6.18317,1617.3,1616.9,8.89956871]
[1744510489675,12.36655,1617.3,1616.9,8.89956871]
[1744510490391,6.18292,1617.4,1617.0,6.18411]
[1744510490683,12.36603,1617.4,1617.0,6.18411]
[1744510490857,12.36603,1617.4,1617.0,7.69247787]
[1744510491388,12.36658,1617.3,1617.0,1.50836787]
[1744510491587,6.18356,1617.2,1617.0,1.50836787]
[1744510492286,6.18314,1617.3,1617.0,1.50836787]
[1744510492489,6.18314,1617.3,1617.0,7.69263787]
[1744510493690,6.18276,1617.4,1616.9,15.86707871]
[1744510493865,7.29354,1617.2,1616.9,14.6867]
[1744510494558,13.47738,1617.2,1616.9,14.6867]
[1744510494760,6.1832,1617.3,1616.9,20.8711]
[1744510495068,12.36665,1617.3,1616.9,20.8711]
[1744510495271,6.1839,1617.2,1616.9,14.6867]
[1744510496690,6.18401,1617.1,1616.9,14.6867]
[1744510496888,6.18429,1617.0,1616.9,5.97]
[1744510497089,12.36986,1616.9,1616.6,8.815]
[1744510497464,6.18486,1616.9,1616.6,8.815]
[1744510497664,6.18435,1617.0,1616.6,15.00048]
[1744510497862,6.18435,1617.0,1616.6,17.397528]
[1744510498189,12.36968,1616.9,1616.6,11.212048]
[1744510498490,12.36968,1616.9,1616.6,8.815]
[1744510498787,6.1847,1616.9,1616.6,8.815]
[1744510498992,12.3696,1616.9,1616.6,8.815]
[1744510499461,6.1847,1616.9,1616.6,8.815]
[1744510499662,6.18516,1616.8,1616.6,8.815]
[1744510499865,6.18543,1616.7,1616.6,8.815]
[1744510500195,1.728216,1616.8,1616.4,1.633]
[1744510500393,12.37269,1616.5,1616.2,8.816]
[1744510500586,6.18536,1616.8,1616.5,1.633]
[1744510500894,6.18387,1617.2,1616.8,7.81786]
[1744510501094,1.1097,1617.4,1616.9,6.1843]
[1744510501296,6.1832,1617.3,1617.0,1.5348]
[1744510501877,7.29275,1617.4,1617.0,9.109374]
[1744510502072,13.47575,1617.4,1617.0,9.109374]
[1744510502279,6.18353,1617.2,1617.0,2.925174]
[1744510502477,6.18353,1617.2,1617.0,1.5348]
[1744510502904,6.18319,1617.3,1617.0,1.5348]
[1744510503208,12.3666,1617.3,1617.0,1.5348]
[1744510504523,6.18319,1617.3,1617.0,1.5348]
[1744510504816,6.18319,1617.3,1617.0,2.606724]
[1744510505397,6.18279,1617.4,1617.0,8.790824]
[1744510505576,6.18279,1617.4,1617.0,15.974824]
[1744510506122,6.18349,1617.3,1617.0,9.790724]
[1744510506413,6.1828,1617.4,1617.0,15.974924]
[1744510506622,6.1828,1617.4,1617.1,1.5974924]
[1744510507406,6.18163,1617.7,1617.2,7.80982]
[1744510507613,6.18163,1617.7,1617.3,6.18299]
[1744510507812,6.18047,1618.0,1617.4,7.80874]
[1744510507813,6.18091,1617.9,1617.4,7.80874]
[1744510508104,7.29021,1618.0,1617.6,6.18197]
[1744510508306,7.28943,1618.2,1617.7,0.618197]
[1744510508499,1.1097,1618.2,1617.5,13.77865]
[1744510508808,6.181,1617.9,1617.5,13.77865]
[1744510509019,6.18177,1617.7,1617.5,7.5963]
[1744510509207,7.29098,1617.8,1617.3,1.6263]
[1744510509208,6.18229,1617.6,1617.3,1.6263]
[1744510509373,12.36458,1617.6,1617.3,4.6263]
[1744510509578,7.29096,1617.8,1617.4,6.18268]
[1744510509779,6.1809,1617.9,1617.5,1.6263]
[1744510509978,6.1809,1617.9,1617.5,7.80853]
[1744510510179,12.362,1617.9,1617.5,7.80853]
[1744510511217,6.18166,1617.7,1617.5,1.6263]
[1744510511415,6.18123,1617.8,1617.5,2.67208023]
[1744510511734,6.18086,1617.9,1617.5,8.85443023]
[1744510512031,6.18086,1617.9,1617.5,16.03743023]
[1744510512186,12.36198,1617.9,1617.5,16.03743023]
[1744510512630,6.18126,1617.8,1617.5,16.03743023]
[1744510512933,6.18126,1617.8,1617.6,1.60374302]
[1744510516094,6.18126,1617.8,1617.5,9.85508023]
[1744510516691,6.18174,1617.7,1617.5,9.85508023]
[1744510516932,6.18174,1617.7,1617.5,7.183]
[1744510517835,6.18199,1617.6,1617.5,7.183]
[1744510518643,1.1097,1617.8,1617.5,7.183]
[1744510518793,12.3624,1617.9,1617.5,13.36529]
[1744510518992,12.3624,1617.9,1617.5,15.483679]
[1744510519941,6.18165,1617.7,1617.5,9.301389]
[1744510520091,6.18165,1617.7,1617.5,7.183]
[1744510520302,6.1813,1617.8,1617.5,13.36537]
[1744510520906,6.1813,1617.8,1617.5,7.183]
[1744510521559,6.1813,1617.8,1617.5,13.36536]
[1744510521712,6.18085,1617.9,1617.6,7.81785]
[1744510521908,6.18085,1617.9,1617.7,0.781785]
[1744510522313,6.18061,1618.0,1617.7,0.781785]
[1744510522739,12.36132,1618.0,1617.7,0.781785]
[1744510522937,6.18012,1618.1,1617.8,6.18123]
[1744510523138,6.18012,1618.1,1617.8,7.81733]
[1744510523351,6.18012,1618.1,1617.9,0.781733]
[1744510524607,6.18012,1618.1,1617.8,1.6361]
[1744510524808,6.35285995,1618.1,1617.8,1.6361]
[1744510525108,0.17273995,1618.1,1617.9,6.18059]
[1744510525337,0.17273995,1618.1,1618.0,7.68246]
[1744510525651,6.17972,1618.2,1618.0,1.502]
[1744510525813,0.17273995,1618.1,1618.0,1.502]
[1744510526013,0.17273995,1618.1,1618.0,2.270259]
[1744510526230,12.35803,1618.4,1618.0,8.450589]
[1744510526429,0.17273995,1618.1,1618.0,8.450589]
[1744510526629,6.17859,1618.5,1618.1,6.17982]
[1744510526829,12.35737,1618.5,1618.2,2.119982]
[1744510529767,6.1791,1618.4,1618.2,2.119982]
[1744510530050,12.35837,1618.4,1618.2,1.502]
[1744510530438,6.1791,1618.4,1618.2,1.502]
[1744510530940,7.28935,1618.3,1618.0,0.768259]
[1744510531134,12.35918,1618.3,1618.0,0.768259]
[1744510531334,6.17953,1618.3,1618.0,6.948579]
[1744510531538,6.17953,1618.3,1618.1,0.6948579]
[1744510532616,7.28862,1618.5,1618.2,1.6478]
[1744510533548,6.17908,1618.4,1618.2,1.6478]
[1744510535351,0.17495872,1618.3,1618.2,1.6478]
[1744510535633,6.17908,1618.4,1618.2,1.6478]
[1744510535942,0.17495872,1618.3,1618.2,1.6478]
[1744510536117,6.17908,1618.4,1618.2,2.50007079]
[1744510536448,0.17495872,1618.3,1618.2,2.50007079]
[1744510536749,6.17908,1618.4,1618.2,2.50007079]
[1744510536951,0.17495872,1618.3,1618.2,2.50007079]
[1744510537420,6.17908,1618.4,1618.2,2.50007079]
[1744510537621,0.17495872,1618.3,1618.2,2.50007079]
[1744510537952,6.17908,1618.4,1618.2,2.50007079]
[1744510538251,0.17495872,1618.3,1618.2,2.50007079]
[1744510538654,6.17908,1618.4,1618.2,2.50007079]
[1744510538838,0.17495872,1618.3,1618.2,2.50007079]
[1744510539236,13.46743,1618.5,1618.2,2.50007079]
[1744510539442,0.17495872,1618.3,1618.2,2.50007079]
[1744510539618,13.46731,1618.5,1618.2,2.50007079]
[1744510539820,0.17684834,1618.3,1618.2,2.50007079]
[1744510540018,13.46722,1618.5,1618.2,2.50007079]
[1744510540214,0.17684834,1618.3,1618.2,19.92786146]
[1744510540450,12.35511,1618.8,1618.4,6.17884]
[1744510540754,12.35511,1618.8,1618.5,0.617884]
[1744510541124,6.17783,1618.7,1618.5,0.617884]
[1744510541420,12.35583,1618.7,1618.3,7.71097]
[1744510541647,6.17783,1618.7,1618.3,13.8901]
[1744510544648,6.17783,1618.7,1618.4,6.17879]
[1744510544857,6.17746,1618.8,1618.4,6.17879]
[1744510545057,6.17803,1618.7,1618.3,13.89024]
[1744510545258,6.17803,1618.7,1618.4,0.771097]
[1744510545775,7.288,1618.6,1618.4,0.771097]
[1744510545925,6.17856,1618.5,1618.2,18.71077079]
[1744510546119,7.288,1618.6,1618.2,8.01327079]
[1744510546120,1.1097,1618.6,1618.2,8.01327079]
[1744510546426,6.17963,1618.3,1618.1,5.97]
[1744510546667,7.28933,1618.3,1618.0,7.16]
[1744510546868,2.18504067,1618.8,1618.1,6.17986]
[1744510546869,7.2883,1618.5,1618.1,6.17986]
[1744510547080,0.17907036,1618.2,1618.0,14.86321]
[1744510547265,6.17934,1618.3,1618.0,14.86321]
[1744510547564,0.17907036,1618.2,1618.1,1.486321]
[1744510547785,6.1796,1618.3,1618.1,1.486321]
[1744510548267,0.17907036,1618.2,1618.1,7.666371]
[1744510548650,6.17907,1618.4,1618.1,7.666371]
[1744510548966,0.18017968,1618.3,1618.1,7.666371]
[1744510549167,12.35741,1618.5,1618.2,0.7666371]
[1744510549546,0.18128885,1618.4,1618.2,0.7666371]
[1744510550043,6.36029885,1618.4,1618.2,0.7666371]
[1744510550669,6.36029885,1618.4,1618.1,1.486321]
[1744510551168,13.46885,1618.3,1618.1,1.486321]
[1744510551463,7.4683952,1618.3,1618.0,13.13]
[1744510551646,13.6479252,1618.3,1618.0,13.13]
[1744510551846,7.4683952,1618.3,1618.0,13.13]
[1744510553270,7.4683952,1618.3,1617.8,7.4928]
[1744510553271,6.18008,1618.1,1617.8,7.4928]
[1744510553489,6.17976,1618.2,1617.8,13.67399]
[1744510553789,0.17701643,1618.1,1617.9,1.367399]